[Event "*** MasterClass Titled Tuesday Blitz"]
[Site "Chess.com"]
[Date "2017.09.05"]
[Round "1"]
[White "mwpchess"]
[Black "abubakrtagelsir"]
[Result "1/2-1/2"]
[WhiteElo "2487"]
[BlackElo "2209"]
[TimeControl "180+2"]
[EndTime "13:14:15 PDT"]
[Termination "Game drawn by repetition"]

1. c4 {[%clk 0:02:57.6]} 1... c6 {[%clk 0:02:59.2]} 2. Nf3 {[%clk 0:02:56]} 2...
d5 {[%clk 0:02:59.4]} 3. g3 {[%clk 0:02:56.3]} 3... Nf6 {[%clk 0:02:59]} 4. Bg2
{[%clk 0:02:56.8]} 4... h6 {[%clk 0:02:58.2]} 5. O-O {[%clk 0:02:57.5]} 5... Bf5
{[%clk 0:02:57.4]} 6. Qb3 {[%clk 0:02:53.5]} 6... Qb6 {[%clk 0:02:56.5]} 7. d3
{[%clk 0:02:52.1]} 7... e6 {[%clk 0:02:55]} 8. Be3 {[%clk 0:02:51.3]} 8... Qxb3
{[%clk 0:02:51]} 9. axb3 {[%clk 0:02:51.4]} 9... a6 {[%clk 0:02:52.1]} 10. Nc3
{[%clk 0:02:40.8]} 10... Nbd7 {[%clk 0:02:52]} 11. Na4 {[%clk 0:02:32.9]} 11...
Bd6 {[%clk 0:02:39.3]} 12. Nb6 {[%clk 0:02:29.7]} 12... Nxb6 {[%clk 0:02:39.1]}
13. Bxb6 {[%clk 0:02:28.4]} 13... O-O {[%clk 0:02:39]} 14. Nd2 {[%clk
0:01:48.5]} 14... Bb4 {[%clk 0:02:13.9]} 15. Ba5 {[%clk 0:01:48.4]} 15... Be7
{[%clk 0:02:03.4]} 16. e4 {[%clk 0:01:47.4]} 16... dxe4 {[%clk 0:01:58.1]} 17.
dxe4 {[%clk 0:01:42.6]} 17... Bg6 {[%clk 0:01:59.1]} 18. Rfe1 {[%clk 0:01:41.1]}
18... Rfc8 {[%clk 0:01:55.8]} 19. h3 {[%clk 0:01:37.6]} 19... Bd8 {[%clk
0:01:55.7]} 20. Bc3 {[%clk 0:01:34.9]} 20... Bb6 {[%clk 0:01:55.7]} 21. Kf1
{[%clk 0:01:35.2]} 21... Rd8 {[%clk 0:01:51.8]} 22. Ke2 {[%clk 0:01:28.5]} 22...
Rd7 {[%clk 0:01:43.1]} 23. Red1 {[%clk 0:01:17.8]} 23... Rad8 {[%clk 0:01:42.9]}
24. e5 {[%clk 0:01:04.8]} 24... Nh7 {[%clk 0:01:34.1]} 25. Ne4 {[%clk
0:01:05.2]} 25... Nf8 {[%clk 0:01:20.2]} 26. Rxd7 {[%clk 0:01:01.3]} 26... Rxd7
{[%clk 0:01:19.9]} 27. Nd6 {[%clk 0:01:02.2]} 27... Bc5 {[%clk 0:01:12.6]} 28.
Ne4 {[%clk 0:00:53.9]} 28... Be7 {[%clk 0:01:10.1]} 29. f4 {[%clk 0:00:54]}
29... Rd8 {[%clk 0:01:03.9]} 30. Rd1 {[%clk 0:00:54.6]} 30... Rxd1 {[%clk
0:01:03.7]} 31. Kxd1 {[%clk 0:00:55.4]} 31... Nd7 {[%clk 0:01:04.9]} 32. Bd4
{[%clk 0:00:55.7]} 32... Kf8 {[%clk 0:01:05.3]} 33. Kd2 {[%clk 0:00:56]} 33...
Bb4+ {[%clk 0:01:03.5]} 34. Bc3 {[%clk 0:00:56]} 34... Be7 {[%clk 0:01:04.3]}
35. b4 {[%clk 0:00:55.6]} 35... Ke8 {[%clk 0:01:02.5]} 36. b3 {[%clk 0:00:56.6]}
36... Kd8 {[%clk 0:01:02.7]} 37. Nd6 {[%clk 0:00:55.5]} 37... Bxd6 {[%clk
0:01:02.1]} 38. exd6 {[%clk 0:00:56]} 38... f6 {[%clk 0:01:00.8]} 39. c5 {[%clk
0:00:57.1]} 39... a5 {[%clk 0:00:58.3]} 40. g4 {[%clk 0:00:55.8]} 40... axb4
{[%clk 0:00:57.6]} 41. Bxb4 {[%clk 0:00:56.9]} 41... Nb8 {[%clk 0:00:59.1]} 42.
Kc3 {[%clk 0:00:57.1]} 42... Kd7 {[%clk 0:00:58.5]} 43. Ba5 {[%clk 0:00:57.4]}
43... Bh7 {[%clk 0:00:47.8]} 44. b4 {[%clk 0:00:58.2]} 44... Bg6 {[%clk
0:00:41.3]} 45. Bf3 {[%clk 0:00:56.3]} 45... Bh7 {[%clk 0:00:40.8]} 46. Bb6
{[%clk 0:00:56]} 46... Bg6 {[%clk 0:00:40.7]} 47. h4 {[%clk 0:00:56.6]} 47...
Bh7 {[%clk 0:00:40.5]} 48. g5 {[%clk 0:00:53.8]} 48... hxg5 {[%clk 0:00:35.9]}
49. hxg5 {[%clk 0:00:54.3]} 49... Bf5 {[%clk 0:00:36.4]} 50. gxf6 {[%clk
0:00:54.4]} 50... gxf6 {[%clk 0:00:37.3]} 51. Be2 {[%clk 0:00:55.1]} 51... e5
{[%clk 0:00:35.9]} 52. fxe5 {[%clk 0:00:54.2]} 52... fxe5 {[%clk 0:00:36.7]} 53.
b5 {[%clk 0:00:54.1]} 53... cxb5 {[%clk 0:00:35.7]} 54. Bxb5+ {[%clk 0:00:54.4]}
54... Nc6 {[%clk 0:00:36.7]} 55. Kc4 {[%clk 0:00:54.6]} 55... Be4 {[%clk
0:00:33.5]} 56. Ba4 {[%clk 0:00:54.4]} 56... Bg2 {[%clk 0:00:32.9]} 57. Bc7
{[%clk 0:00:53.2]} 57... Bf3 {[%clk 0:00:31.4]} 58. Bc2 {[%clk 0:00:50.2]} 58...
Be2+ {[%clk 0:00:30.2]} 59. Kc3 {[%clk 0:00:49.9]} 59... Bg4 {[%clk 0:00:30.8]}
60. Be4 {[%clk 0:00:50]} 60... Be6 {[%clk 0:00:26.1]} 61. Bb6 {[%clk 0:00:46.3]}
61... Kc8 {[%clk 0:00:26.3]} 62. Kd2 {[%clk 0:00:46.5]} 62... Kd7 {[%clk
0:00:27.2]} 63. Ke3 {[%clk 0:00:47.6]} 63... Kc8 {[%clk 0:00:27.4]} 64. Bg6
{[%clk 0:00:48]} 64... Kd7 {[%clk 0:00:27.6]} 65. Ke4 {[%clk 0:00:48.9]} 65...
Bh3 {[%clk 0:00:17.8]} 66. Bc7 {[%clk 0:00:41.6]} 66... Be6 {[%clk 0:00:18.2]}
67. Bf5 {[%clk 0:00:33.6]} 67... Bxf5+ {[%clk 0:00:17.8]} 68. Kxf5 {[%clk
0:00:34.5]} 68... Nd4+ {[%clk 0:00:16.8]} 69. Kxe5 {[%clk 0:00:34.8]} 69... Nc6+
{[%clk 0:00:18.4]} 70. Kd5 {[%clk 0:00:35.6]} 70... Nb4+ {[%clk 0:00:19.3]} 71.
Kc4 {[%clk 0:00:36.4]} 71... Nc6 {[%clk 0:00:19.7]} 72. Kb5 {[%clk 0:00:37.6]}
72... Kc8 {[%clk 0:00:20.6]} 73. Ba5 {[%clk 0:00:37.4]} 73... Ne5 {[%clk
0:00:20.7]} 74. Bc3 {[%clk 0:00:38.1]} 74... Nd7 {[%clk 0:00:20.3]} 75. Bd4
{[%clk 0:00:39]} 75... Nb8 {[%clk 0:00:21.3]} 76. Kc4 {[%clk 0:00:38.4]} 76...
Kd7 {[%clk 0:00:20.8]} 77. Kd5 {[%clk 0:00:38.2]} 77... Nc6 {[%clk 0:00:21.7]}
78. Bc3 {[%clk 0:00:39.2]} 78... Nb8 {[%clk 0:00:22.6]} 79. Ba5 {[%clk
0:00:37.1]} 79... Nc6 {[%clk 0:00:23.1]} 80. Bc7 {[%clk 0:00:37.7]} 80... Nb4+
{[%clk 0:00:23.1]} 81. Kc4 {[%clk 0:00:38.6]} 81... Nc6 {[%clk 0:00:23.6]} 82.
Kb5 {[%clk 0:00:39.2]} 82... Kc8 {[%clk 0:00:24.5]} 83. Kb6 {[%clk 0:00:40]}
83... Ne5 {[%clk 0:00:25.6]} 84. Kb5 {[%clk 0:00:36]} 84... Nc6 {[%clk
0:00:22.9]} 85. Ba5 {[%clk 0:00:36.1]} 85... Ne5 {[%clk 0:00:21.1]} 86. Bc3
{[%clk 0:00:35.1]} 86... Nc6 {[%clk 0:00:20.1]} 87. Kb6 {[%clk 0:00:36.4]} 87...
Nb8 {[%clk 0:00:21.2]} 88. Bd4 {[%clk 0:00:35.1]} 88... Nd7+ {[%clk 0:00:21.5]}
89. Ka7 {[%clk 0:00:35.4]} 89... Nb8 {[%clk 0:00:22.6]} 90. Be3 {[%clk 0:00:35]}
90... Nd7 {[%clk 0:00:22.3]} 91. Bf2 {[%clk 0:00:32.5]} 91... Nb8 {[%clk
0:00:22.3]} 92. Kb6 {[%clk 0:00:32.9]} 92... Nd7+ {[%clk 0:00:22.3]} 93. Kb5
{[%clk 0:00:33.7]} 93... Nb8 {[%clk 0:00:23.3]} 94. Bg3 {[%clk 0:00:34.2]} 94...
Kd7 {[%clk 0:00:22.2]} 95. Kb6 {[%clk 0:00:34.2]} 95... Kc8 {[%clk 0:00:23.3]}
96. Kb5 {[%clk 0:00:34.8]} 96... Nc6 {[%clk 0:00:21.3]} 97. Kc4 {[%clk
0:00:35.1]} 97... Kd7 {[%clk 0:00:21.8]} 98. Bh2 {[%clk 0:00:36.2]} 98... Nb8
{[%clk 0:00:21.3]} 99. Kd5 {[%clk 0:00:36.2]} 99... Nc6 {[%clk 0:00:22.2]} 100.
Bg1 {[%clk 0:00:37.1]} 100... Nb8 {[%clk 0:00:22.4]} 101. Kc4 {[%clk 0:00:37.9]}
101... Nc6 {[%clk 0:00:23.3]} 102. Kb5 {[%clk 0:00:38.5]} 102... Nb8 {[%clk
0:00:24.4]} 103. Kb6 {[%clk 0:00:39.6]} 103... Kc8 {[%clk 0:00:25.9]} 104. Ka7
{[%clk 0:00:40]} 104... Nc6+ {[%clk 0:00:25.4]} 105. Kb6 {[%clk 0:00:39.2]}
105... Nb8 {[%clk 0:00:26.7]} 106. Kb5 {[%clk 0:00:40.1]} 106... Nc6 {[%clk
0:00:25.9]} 107. Bh2 {[%clk 0:00:40.7]} 107... Nb8 {[%clk 0:00:26.8]} 108. Kc4
{[%clk 0:00:41.5]} 108... Kd7 {[%clk 0:00:27.2]} 109. Kd5 {[%clk 0:00:42.2]}
109... Nc6 {[%clk 0:00:28.2]} 110. Bg1 {[%clk 0:00:43.2]} 110... Nb8 {[%clk
0:00:29]} 111. Kc4 {[%clk 0:00:44]} 111... Nc6 {[%clk 0:00:29.5]} 112. Kb5
{[%clk 0:00:45.1]} 112... Nb8 {[%clk 0:00:29.2]} 113. Kb6 {[%clk 0:00:45.7]}
113... Kc8 {[%clk 0:00:29.8]} 1/2-1/2

[Event "*** MasterClass Titled Tuesday Blitz"]
[Site "Chess.com"]
[Date "2017.09.05"]
[Round "2"]
[White "Mistheoretical"]
[Black "liquormark"]
[Result "1-0"]
[WhiteElo "2223"]
[BlackElo "2094"]
[TimeControl "180+2"]
[EndTime "13:17:52 PDT"]
[Termination "Mistheoretical won by resignation"]

1. d4 {[%clk 0:03:01.9]} 1... Nf6 {[%clk 0:03:01]} 2. Bg5 {[%clk 0:03:02.6]}
2... e6 {[%clk 0:02:59.6]} 3. Nd2 {[%clk 0:03:03.5]} 3... h6 {[%clk 0:03:00.6]}
4. Bh4 {[%clk 0:03:04.3]} 4... d5 {[%clk 0:02:43.1]} 5. e3 {[%clk 0:03:03.9]}
5... Bd6 {[%clk 0:02:41.3]} 6. f4 {[%clk 0:02:54.5]} 6... c5 {[%clk 0:02:34.5]}
7. c3 {[%clk 0:02:51.7]} 7... b6 {[%clk 0:02:33.9]} 8. Ngf3 {[%clk 0:02:41.3]}
8... Ba6 {[%clk 0:02:34.7]} 9. Bxa6 {[%clk 0:02:41.4]} 9... Nxa6 {[%clk
0:02:36.6]} 10. Qa4+ {[%clk 0:02:42.5]} 10... Qd7 {[%clk 0:02:09.9]} 11. Qxa6
{[%clk 0:02:42.8]} 11... c4 {[%clk 0:02:10.4]} 12. Ne5 {[%clk 0:02:34.8]} 12...
Bxe5 {[%clk 0:02:11.5]} 13. fxe5 {[%clk 0:02:32.7]} 13... Ng4 {[%clk 0:02:10]}
14. Nf1 {[%clk 0:01:59.6]} 14... O-O {[%clk 0:02:03.5]} 15. h3 {[%clk 0:01:56]}
15... g5 {[%clk 0:02:04.3]} 16. Bg3 {[%clk 0:01:53.3]} 1-0

[Event "*** MasterClass Titled Tuesday Blitz"]
[Site "Chess.com"]
[Date "2017.09.05"]
[Round "2"]
[White "grzechu96"]
[Black "platy3"]
[Result "1/2-1/2"]
[WhiteElo "2440"]
[BlackElo "2572"]
[TimeControl "180+2"]
[EndTime "13:18:37 PDT"]
[Termination "Game drawn by agreement"]

1. e4 {[%clk 0:03:01.9]} 1... c5 {[%clk 0:02:54.2]} 2. Nf3 {[%clk 0:03:03.1]}
2... Nc6 {[%clk 0:02:53.5]} 3. Bb5 {[%clk 0:03:03.7]} 3... d6 {[%clk 0:02:54.3]}
4. O-O {[%clk 0:03:02]} 4... Bd7 {[%clk 0:02:55.1]} 5. Re1 {[%clk 0:02:54.3]}
5... Nf6 {[%clk 0:02:55.3]} 6. c3 {[%clk 0:02:55.7]} 6... a6 {[%clk 0:02:56.1]}
7. Bc4 {[%clk 0:02:57.4]} 7... b5 {[%clk 0:02:53.8]} 8. Bf1 {[%clk 0:02:58.5]}
8... e5 {[%clk 0:02:48.2]} 9. d4 {[%clk 0:02:58.4]} 9... Be7 {[%clk 0:02:49.5]}
10. a4 {[%clk 0:02:56.2]} 10... bxa4 {[%clk 0:02:31.3]} 11. Rxa4 {[%clk
0:02:47.4]} 11... cxd4 {[%clk 0:02:32]} 12. Rxa6 {[%clk 0:02:48.4]} 12... Rxa6
{[%clk 0:02:31.8]} 13. Bxa6 {[%clk 0:02:49.3]} 13... O-O {[%clk 0:02:25.5]} 14.
cxd4 {[%clk 0:02:47.2]} 14... Qb6 {[%clk 0:02:08.4]} 15. dxe5 {[%clk 0:02:48.2]}
15... dxe5 {[%clk 0:02:08.8]} 16. Bc4 {[%clk 0:02:45.9]} 16... Bg4 {[%clk
0:02:06.9]} 17. Nc3 {[%clk 0:02:42.7]} 17... Nd4 {[%clk 0:02:05.4]} 18. Be2
{[%clk 0:02:30.2]} 18... Bxf3 {[%clk 0:02:03.2]} 19. Bxf3 {[%clk 0:02:32]} 19...
Rd8 {[%clk 0:01:46.1]} 20. Nd5 {[%clk 0:02:31.2]} 20... Nxd5 {[%clk 0:01:45.9]}
21. exd5 {[%clk 0:02:33.1]} 21... Bd6 {[%clk 0:01:46.7]} 1/2-1/2

[Event "*** MasterClass Titled Tuesday Blitz"]
[Site "Chess.com"]
[Date "2017.09.05"]
[Round "2"]
[White "Bengalas"]
[Black "workhard91"]
[Result "1-0"]
[WhiteElo "2467"]
[BlackElo "2293"]
[TimeControl "180+2"]
[EndTime "13:20:32 PDT"]
[Termination "Bengalas won by resignation"]

1. d4 {[%clk 0:03:01.9]} 1... Nf6 {[%clk 0:03:00.4]} 2. c3 {[%clk 0:02:58.2]}
2... b6 {[%clk 0:02:59.9]} 3. Nf3 {[%clk 0:02:57.4]} 3... Bb7 {[%clk 0:03:01.1]}
4. g3 {[%clk 0:02:58.5]} 4... g6 {[%clk 0:03:02.2]} 5. Bg2 {[%clk 0:02:58.8]}
5... Bg7 {[%clk 0:03:03.4]} 6. O-O {[%clk 0:03:00.3]} 6... O-O {[%clk
0:03:03.2]} 7. c4 {[%clk 0:02:59.2]} 7... c5 {[%clk 0:02:51.9]} 8. Nc3 {[%clk
0:02:53.9]} 8... cxd4 {[%clk 0:02:49.8]} 9. Qxd4 {[%clk 0:02:55.4]} 9... Nc6
{[%clk 0:02:48.6]} 10. Qh4 {[%clk 0:02:55.4]} 10... h5 {[%clk 0:02:34.7]} 11.
Rd1 {[%clk 0:02:51.9]} 11... d6 {[%clk 0:02:31.8]} 12. b3 {[%clk 0:02:41.1]}
12... Ng4 {[%clk 0:01:40.5]} 13. Bb2 {[%clk 0:02:33.7]} 13... Bf6 {[%clk
0:01:34]} 14. Qh3 {[%clk 0:02:28.9]} 14... Rb8 {[%clk 0:01:22.3]} 15. Nd2 {[%clk
0:02:22.5]} 15... Bc8 {[%clk 0:00:41.6]} 16. Nde4 {[%clk 0:01:48.4]} 16... Nxf2
{[%clk 0:00:30.5]} 17. Nxf6+ {[%clk 0:01:48.6]} 17... exf6 {[%clk 0:00:32.4]}
18. Qh4 {[%clk 0:01:49.4]} 18... Nxd1 {[%clk 0:00:32.8]} 19. Rxd1 {[%clk
0:01:49.9]} 19... Ne5 {[%clk 0:00:30.7]} 20. Ne4 {[%clk 0:01:46.9]} 20... f5
{[%clk 0:00:21.2]} 21. Nf6+ {[%clk 0:01:46.5]} 21... Kg7 {[%clk 0:00:22]} 22.
Bxe5 {[%clk 0:01:47.4]} 22... Qe7 {[%clk 0:00:06.1]} 23. Nxh5+ {[%clk
0:01:44.2]} 1-0

[Event "*** MasterClass Titled Tuesday Blitz"]
[Site "Chess.com"]
[Date "2017.09.05"]
[Round "2"]
[White "Blitzstream"]
[Black "dogeandpika4life"]
[Result "1-0"]
[WhiteElo "2489"]
[BlackElo "2298"]
[TimeControl "180+2"]
[EndTime "13:20:49 PDT"]
[Termination "Blitzstream won by resignation"]

1. g4 {[%clk 0:03:01.9]} 1... a6 {[%clk 0:02:54.7]} 2. Bg2 {[%clk 0:03:02.7]}
2... h6 {[%clk 0:02:54.4]} 3. d4 {[%clk 0:03:02.2]} 3... e6 {[%clk 0:02:53.1]}
4. h4 {[%clk 0:03:02.8]} 4... Be7 {[%clk 0:02:51.3]} 5. Nf3 {[%clk 0:03:03.2]}
5... d5 {[%clk 0:02:51.9]} 6. Bf4 {[%clk 0:03:02.1]} 6... c5 {[%clk 0:02:52.4]}
7. c3 {[%clk 0:02:45.7]} 7... Nc6 {[%clk 0:02:49]} 8. e3 {[%clk 0:02:44.6]} 8...
Nf6 {[%clk 0:02:39.4]} 9. g5 {[%clk 0:02:42.1]} 9... hxg5 {[%clk 0:02:41.3]} 10.
hxg5 {[%clk 0:02:22.1]} 10... Rxh1+ {[%clk 0:02:40]} 11. Bxh1 {[%clk 0:02:24]}
11... Ne4 {[%clk 0:02:41]} 12. g6 {[%clk 0:02:22.7]} 12... f5 {[%clk 0:02:31.2]}
13. Ne5 {[%clk 0:02:13.4]} 13... Nxe5 {[%clk 0:02:19.7]} 14. Bxe5 {[%clk
0:02:14.3]} 14... Nf6 {[%clk 0:02:13.3]} 15. Nd2 {[%clk 0:01:57.9]} 15... b6
{[%clk 0:01:52.4]} 16. Qf3 {[%clk 0:01:34.8]} 16... Bb7 {[%clk 0:01:45.7]} 17.
Qh3 {[%clk 0:01:30.5]} 17... Kd7 {[%clk 0:01:44.3]} 18. O-O-O {[%clk 0:01:24.6]}
18... Qh8 {[%clk 0:01:42.6]} 19. Qg3 {[%clk 0:01:16.2]} 19... Rc8 {[%clk
0:01:31.5]} 20. Bf3 {[%clk 0:01:16.6]} 20... b5 {[%clk 0:01:23]} 21. Rh1 {[%clk
0:01:11.6]} 21... Qf8 {[%clk 0:01:16.3]} 22. Nb3 {[%clk 0:00:59]} 22... cxd4
{[%clk 0:01:13.1]} 23. exd4 {[%clk 0:00:54]} 23... b4 {[%clk 0:01:11.9]} 24.
Nc5+ {[%clk 0:00:51.3]} 24... Bxc5 {[%clk 0:01:09.5]} 25. dxc5 {[%clk
0:00:53.2]} 25... bxc3 {[%clk 0:01:08.8]} 26. Bxf6 {[%clk 0:00:47.3]} 26... Qxf6
{[%clk 0:01:10.7]} 27. Qd6+ {[%clk 0:00:47.9]} 27... Ke8 {[%clk 0:01:00.6]} 1-0

[Event "*** MasterClass Titled Tuesday Blitz"]
[Site "Chess.com"]
[Date "2017.09.05"]
[Round "2"]
[White "Sebastian"]
[Black "AndrewMcStone"]
[Result "1-0"]
[WhiteElo "2816"]
[BlackElo "2069"]
[TimeControl "180+2"]
[EndTime "13:20:57 PDT"]
[Termination "Sebastian won by resignation"]

1. e4 {[%clk 0:03:01.9]} 1... Nc6 {[%clk 0:03:00]} 2. Nf3 {[%clk 0:03:02.5]}
2... Nf6 {[%clk 0:03:00.4]} 3. e5 {[%clk 0:03:01.3]} 3... Nd5 {[%clk 0:03:01.4]}
4. d4 {[%clk 0:03:00.4]} 4... d6 {[%clk 0:03:00.7]} 5. c4 {[%clk 0:03:01.5]}
5... Nb6 {[%clk 0:03:01.1]} 6. e6 {[%clk 0:03:03.2]} 6... fxe6 {[%clk
0:03:01.5]} 7. Nc3 {[%clk 0:03:03.8]} 7... g6 {[%clk 0:03:00.4]} 8. h4 {[%clk
0:03:04.2]} 8... Bg7 {[%clk 0:02:58.3]} 9. Be3 {[%clk 0:03:03]} 9... Nd7 {[%clk
0:02:30.5]} 10. h5 {[%clk 0:02:56]} 10... Nf8 {[%clk 0:01:52.6]} 11. Be2 {[%clk
0:02:45.1]} 11... b6 {[%clk 0:01:36.5]} 12. d5 {[%clk 0:01:46.5]} 12... Ne5
{[%clk 0:01:31.5]} 13. Nd4 {[%clk 0:01:47.3]} 13... Bb7 {[%clk 0:00:58.8]} 14.
f4 {[%clk 0:01:44.9]} 14... Ned7 {[%clk 0:00:51.2]} 15. Qa4 {[%clk 0:01:36.1]}
15... a6 {[%clk 0:00:20.4]} 16. dxe6 {[%clk 0:01:20.8]} 16... b5 {[%clk
0:00:11.1]} 17. exd7+ {[%clk 0:01:19.5]} 17... Qxd7 {[%clk 0:00:11.8]} 18. cxb5
{[%clk 0:01:17.5]} 18... axb5 {[%clk 0:00:11.4]} 19. Qxb5 {[%clk 0:01:08.8]}
19... c6 {[%clk 0:00:12.1]} 20. Qb3 {[%clk 0:01:08.4]} 20... c5 {[%clk
0:00:09.1]} 21. Bb5 {[%clk 0:01:08.3]} 1-0

[Event "*** MasterClass Titled Tuesday Blitz"]
[Site "Chess.com"]
[Date "2017.09.05"]
[Round "2"]
[White "FelixBlohberger"]
[Black "MITerryble"]
[Result "0-1"]
[WhiteElo "2319"]
[BlackElo "2689"]
[TimeControl "180+2"]
[EndTime "13:21:07 PDT"]
[Termination "MITerryble won by resignation"]

1. e4 {[%clk 0:03:01.9]} 1... e6 {[%clk 0:02:59.8]} 2. b3 {[%clk 0:02:51.6]}
2... d5 {[%clk 0:03:02.3]} 3. Bb2 {[%clk 0:02:52.8]} 3... Nf6 {[%clk 0:03:01.5]}
4. e5 {[%clk 0:02:52.4]} 4... Nfd7 {[%clk 0:03:02.5]} 5. f4 {[%clk 0:02:54]}
5... c5 {[%clk 0:03:03.4]} 6. Nf3 {[%clk 0:02:55.6]} 6... Nc6 {[%clk 0:03:04.9]}
7. g3 {[%clk 0:02:57.1]} 7... h5 {[%clk 0:03:05.2]} 8. h3 {[%clk 0:02:46]} 8...
Ne7 {[%clk 0:02:59.8]} 9. Nc3 {[%clk 0:02:34.7]} 9... Nf5 {[%clk 0:03:00.3]} 10.
Ne2 {[%clk 0:02:35.5]} 10... b6 {[%clk 0:02:53.8]} 11. Bg2 {[%clk 0:02:32.7]}
11... Ba6 {[%clk 0:02:54.8]} 12. Kf2 {[%clk 0:02:10.6]} 12... h4 {[%clk
0:02:52.3]} 13. g4 {[%clk 0:02:00.3]} 13... Bxe2 {[%clk 0:02:52.3]} 14. Qxe2
{[%clk 0:01:58.1]} 14... Ng3 {[%clk 0:02:53.4]} 15. Qe3 {[%clk 0:01:59.2]} 15...
Nxh1+ {[%clk 0:02:54]} 16. Bxh1 {[%clk 0:01:59.3]} 16... Rc8 {[%clk 0:02:49.8]}
17. c4 {[%clk 0:01:53]} 17... dxc4 {[%clk 0:02:48.2]} 18. bxc4 {[%clk
0:01:54.9]} 18... Nb8 {[%clk 0:02:49.5]} 19. f5 {[%clk 0:01:49.5]} 19... Nc6
{[%clk 0:02:50.2]} 20. d3 {[%clk 0:01:15.4]} 20... Be7 {[%clk 0:02:48.2]} 21.
Kg1 {[%clk 0:01:12.6]} 21... Qd7 {[%clk 0:02:38]} 22. f6 {[%clk 0:00:51.7]}
22... gxf6 {[%clk 0:02:38]} 23. exf6 {[%clk 0:00:53.6]} 23... Bd6 {[%clk
0:02:39.1]} 24. Bg2 {[%clk 0:00:44.8]} 24... Qc7 {[%clk 0:02:38]} 25. Re1 {[%clk
0:00:41.1]} 25... Bf4 {[%clk 0:02:37.4]} 26. Qe4 {[%clk 0:00:41.7]} 26... Kf8
{[%clk 0:02:35.8]} 27. Re2 {[%clk 0:00:38.7]} 27... Rd8 {[%clk 0:02:34.4]} 28.
Kh1 {[%clk 0:00:33.5]} 28... Bg3 {[%clk 0:02:17.7]} 29. a3 {[%clk 0:00:05.1]}
29... Qd7 {[%clk 0:02:14.4]} 30. g5 {[%clk 0:00:03.6]} 30... Qxd3 {[%clk
0:02:14.4]} 31. Qxc6 {[%clk 0:00:03.3]} 31... Qxe2 {[%clk 0:02:12.7]} 32. Ng1
{[%clk 0:00:02.7]} 32... Qxb2 {[%clk 0:02:13.1]} 33. g6 {[%clk 0:00:03.7]} 33...
Qxf6 {[%clk 0:02:12.8]} 34. Qb7 {[%clk 0:00:04.2]} 34... Rd1 {[%clk 0:02:12.7]}
35. gxf7 {[%clk 0:00:02.9]} 35... Rxg1+ {[%clk 0:02:13.5]} 36. Kxg1 {[%clk
0:00:04.3]} 36... Qf2+ {[%clk 0:02:15.1]} 0-1

[Event "*** MasterClass Titled Tuesday Blitz"]
[Site "Chess.com"]
[Date "2017.09.05"]
[Round "2"]
[White "r31415"]
[Black "the_drake"]
[Result "1-0"]
[WhiteElo "2157"]
[BlackElo "2180"]
[TimeControl "180+2"]
[EndTime "13:21:08 PDT"]
[Termination "r31415 won by checkmate"]

1. e4 {[%clk 0:03:01.9]} 1... e5 {[%clk 0:03:00.5]} 2. Nf3 {[%clk 0:03:02.1]}
2... Nc6 {[%clk 0:03:01.4]} 3. d4 {[%clk 0:03:00.2]} 3... exd4 {[%clk
0:03:00.8]} 4. Nxd4 {[%clk 0:03:02.1]} 4... Nf6 {[%clk 0:03:00.7]} 5. Nxc6
{[%clk 0:03:02.9]} 5... bxc6 {[%clk 0:02:57.8]} 6. Qe2 {[%clk 0:03:04.8]} 6...
Qe7 {[%clk 0:02:53]} 7. Nc3 {[%clk 0:03:03.6]} 7... g6 {[%clk 0:02:53.2]} 8. Bg5
{[%clk 0:02:48]} 8... h6 {[%clk 0:02:52.1]} 9. Bh4 {[%clk 0:02:45]} 9... g5
{[%clk 0:02:53.1]} 10. Bg3 {[%clk 0:02:45.8]} 10... Bg7 {[%clk 0:02:54.2]} 11.
Bxc7 {[%clk 0:02:25.9]} 11... O-O {[%clk 0:02:50.9]} 12. e5 {[%clk 0:02:17.5]}
12... Ne8 {[%clk 0:02:45.4]} 13. Ba5 {[%clk 0:01:52.1]} 13... Qxe5 {[%clk
0:02:41.3]} 14. Qxe5 {[%clk 0:01:51.6]} 14... Bxe5 {[%clk 0:02:41.5]} 15. O-O-O
{[%clk 0:01:45.4]} 15... d5 {[%clk 0:02:27.5]} 16. Bd3 {[%clk 0:01:19.1]} 16...
Nf6 {[%clk 0:01:24.2]} 17. f3 {[%clk 0:00:55.1]} 17... Bd6 {[%clk 0:00:55.9]}
18. Ne2 {[%clk 0:00:47.8]} 18... Rb8 {[%clk 0:00:53]} 19. Bc3 {[%clk 0:00:47.2]}
19... Nd7 {[%clk 0:00:51.5]} 20. Nd4 {[%clk 0:00:45.8]} 20... Bb7 {[%clk
0:00:46.5]} 21. Nf5 {[%clk 0:00:38.3]} 21... Bf4+ {[%clk 0:00:40.5]} 22. Kb1
{[%clk 0:00:39.6]} 22... h5 {[%clk 0:00:36.4]} 23. Nh6# {[%clk 0:00:39.6]} 1-0

[Event "*** MasterClass Titled Tuesday Blitz"]
[Site "Chess.com"]
[Date "2017.09.05"]
[Round "2"]
[White "Scott-fox21"]
[Black "chesstatour"]
[Result "0-1"]
[WhiteElo "2170"]
[BlackElo "2066"]
[TimeControl "180+2"]
[EndTime "13:21:19 PDT"]
[Termination "chesstatour won by resignation"]

1. d4 {[%clk 0:03:02]} 1... f5 {[%clk 0:02:56.1]} 2. e4 {[%clk 0:03:02.2]} 2...
fxe4 {[%clk 0:02:50]} 3. Nc3 {[%clk 0:03:02.2]} 3... Nf6 {[%clk 0:02:44.2]} 4.
Bg5 {[%clk 0:03:03]} 4... Nc6 {[%clk 0:02:40.9]} 5. d5 {[%clk 0:03:00.2]} 5...
Ne5 {[%clk 0:02:41.3]} 6. Bxf6 {[%clk 0:03:00.9]} 6... exf6 {[%clk 0:02:39.6]}
7. Nxe4 {[%clk 0:03:02.2]} 7... d6 {[%clk 0:01:56.9]} 8. Qh5+ {[%clk 0:02:53.9]}
8... g6 {[%clk 0:01:55.2]} 9. Qe2 {[%clk 0:02:53.5]} 9... Kf7 {[%clk 0:01:45.8]}
10. f4 {[%clk 0:02:48.2]} 10... Bg4 {[%clk 0:01:30.8]} 11. Qf2 {[%clk 0:02:39]}
11... Nd7 {[%clk 0:01:24.4]} 12. h3 {[%clk 0:02:38.9]} 12... Qe7 {[%clk
0:01:14.2]} 13. Qe3 {[%clk 0:02:33.3]} 13... Bf5 {[%clk 0:01:08.8]} 14. Bd3
{[%clk 0:01:49.9]} 14... Re8 {[%clk 0:01:08.4]} 15. O-O-O {[%clk 0:01:33.2]}
15... Bxe4 {[%clk 0:01:09.1]} 16. Qxa7 {[%clk 0:01:22.5]} 16... Bxd3 {[%clk
0:01:01.7]} 17. Rxd3 {[%clk 0:01:23.5]} 17... Nc5 {[%clk 0:00:55.8]} 18. Rd1
{[%clk 0:01:24.5]} 18... Bh6 {[%clk 0:00:49.2]} 19. Qa3 {[%clk 0:01:13.8]} 19...
Ra8 {[%clk 0:00:40]} 20. Qf3 {[%clk 0:01:11.9]} 20... Rxa2 {[%clk 0:00:37]} 21.
Kb1 {[%clk 0:01:13]} 21... Rha8 {[%clk 0:00:36.9]} 22. c3 {[%clk 0:01:11.8]}
22... Ra1+ {[%clk 0:00:27.3]} 23. Kc2 {[%clk 0:01:12.2]} 23... Rxd1 {[%clk
0:00:28.1]} 24. Kxd1 {[%clk 0:01:10.6]} 24... Qe4 {[%clk 0:00:26.4]} 25. Qxe4
{[%clk 0:00:56.1]} 25... Nxe4 {[%clk 0:00:28.3]} 26. Kc2 {[%clk 0:00:56.5]}
26... Bxf4 {[%clk 0:00:27.4]} 27. Ne2 {[%clk 0:00:56.4]} 27... Be5 {[%clk
0:00:27.3]} 28. Rf1 {[%clk 0:00:54.1]} 28... Ng3 {[%clk 0:00:26.7]} 29. Rf3
{[%clk 0:00:54.5]} 29... Nxe2 {[%clk 0:00:27.1]} 0-1